fUST/lending_fUST_20250318
["ID","MTS","AMOUNT","RATE_DAILY","PERIOD"]
[356331558,1742286673144,-1000.0,9.589e-05,3]
[356331559,1742286673154,-1000.0,9.589e-05,3]
[356331560,1742286673166,-1000.0,9.589e-05,3]
[356331561,1742286673177,-1000.0,9.589e-05,3]
[356331562,1742286673187,-1000.0,9.589e-05,3]
[356331563,1742286673199,-1000.0,9.589e-05,3]
[356331564,1742286673210,-1000.0,9.589e-05,3]
[356331565,1742286673220,-1000.0,9.589e-05,3]
[356331566,1742286673230,-1000.0,9.589e-05,3]
[356331567,1742286673241,-1000.0,9.589e-05,3]
[356331568,1742286673252,-1000.0,9.589e-05,3]
[356331569,1742286673264,-1000.0,9.589e-05,3]
[356331570,1742286673278,-1000.0,9.589e-05,3]
[356331571,1742286673290,-1000.0,9.589e-05,3]
[356331572,1742286673301,-1000.0,9.589e-05,3]
[356331573,1742286673312,-1000.0,9.589e-05,3]
[356331574,1742286673322,-1000.0,9.589e-05,3]
[356331575,1742286673332,-1000.0,9.589e-05,3]
[356331576,1742286673343,-1000.0,9.589e-05,3]
[356331577,1742286673353,-1000.0,9.589e-05,3]
[356331578,1742286673480,-1000.0,9.589e-05,3]
[356331579,1742286673491,-1000.0,9.589e-05,3]
[356331580,1742286673501,-1000.0,9.589e-05,3]
[356331581,1742286673511,-1000.0,9.589e-05,3]
[356331582,1742286673522,-1000.0,9.589e-05,3]
[356331583,1742286673532,-1000.0,9.589e-05,3]
[356331584,1742286673543,-1000.0,9.589e-05,3]
[356331585,1742286673553,-1000.0,9.589e-05,3]
[356331586,1742286673563,-1000.0,9.589e-05,3]
[356331587,1742286673573,-1000.0,9.589e-05,3]
[356331588,1742286673584,-1000.0,9.589e-05,3]
[356331589,1742286673594,-1000.0,9.589e-05,3]
[356331590,1742286673604,-1000.0,9.589e-05,3]
[356331591,1742286673614,-1000.0,9.589e-05,3]
[356331592,1742286673624,-1000.0,9.589e-05,3]
[356331593,1742286673634,-1000.0,9.589e-05,3]
[356331594,1742286673643,-1000.0,9.589e-05,3]
[356331595,1742286673652,-1000.0,9.589e-05,3]
[356331596,1742286673662,-1000.0,9.589e-05,3]
[356331597,1742286673672,-1000.0,9.589e-05,3]
[356331598,1742286673682,-1000.0,9.589e-05,3]
[356331599,1742286673692,-1000.0,9.589e-05,3]
[356331600,1742286673703,-1000.0,9.589e-05,3]
[356331601,1742286673712,-1000.0,9.589e-05,3]
[356331602,1742286673722,-1000.0,9.589e-05,3]
[356331603,1742286673732,-1000.0,9.589e-05,3]
[356331604,1742286673741,-1000.0,9.589e-05,3]
[356331605,1742286673751,-1000.0,9.589e-05,3]
[356331606,1742286673760,-1000.0,9.589e-05,3]
[356331607,1742286673770,-1000.0,9.589e-05,3]
[356331608,1742286673780,-1000.0,9.589e-05,3]
[356331609,1742286673789,-1000.0,9.589e-05,3]
[356331610,1742286673800,-1000.0,9.589e-05,3]
[356331611,1742286673811,-1000.0,9.589e-05,3]
[356331612,1742286673820,-1000.0,9.589e-05,3]
[356331613,1742286673830,-1000.0,9.589e-05,3]
[356331614,1742286673840,-1000.0,9.589e-05,3]
[356331615,1742286673850,-1000.0,9.589e-05,3]
[356331616,1742286673860,-1000.0,9.589e-05,3]
[356331617,1742286673870,-1000.0,9.589e-05,3]
[356331618,1742286673880,-1000.0,9.589e-05,3]
[356331619,1742286673890,-1000.0,9.589e-05,3]
[356331620,1742286673901,-1000.0,9.589e-05,3]
[356331621,1742286673911,-598.02723861,9.589e-05,3]
[356331622,1742286673921,-835.11200367,9.66e-05,2]
[356331623,1742286673931,-587.0,9.678e-05,2]
[356331624,1742286673940,-465.05342659,9.736e-05,2]
[356331625,1742286673951,-500.0,9.765e-05,2]
[356331626,1742286673961,-500.0,9.863e-05,2]
[356331627,1742286673971,-500.0,9.863e-05,2]
[356331628,1742286673983,-502.89,9.863e-05,2]
[356331629,1742286673993,-500.0,9.863e-05,2]
[356331630,1742286674006,-500.0,9.863e-05,2]
[356331631,1742286674016,-511.7221554,9.863e-05,2]
[356331632,1742286674028,-500.1582075,9.863e-05,2]
[356331633,1742286674039,-500.0,9.863e-05,2]
[356331634,1742286674050,-500.0,9.863e-05,2]
[356331635,1742286674060,-500.0,9.863e-05,2]
[356331636,1742286674070,-500.0,9.863e-05,2]
[356331637,1742286674080,-500.0,9.863e-05,2]
[356331638,1742286674090,-500.0,9.863e-05,2]
[356331639,1742286674101,-500.0,9.863e-05,2]
[356331640,1742286674111,-500.0,9.863e-05,2]
[356331641,1742286674124,-500.0,9.863e-05,2]
[356331642,1742286674133,-500.0,9.863e-05,2]
[356331643,1742286674143,-500.0,9.863e-05,2]
[356331644,1742286674153,-500.0,9.863e-05,2]
[356331645,1742286674163,-511.96169935,9.863e-05,2]
[356331646,1742286674174,-500.0,9.863e-05,2]
[356331647,1742286674184,-500.0,9.863e-05,2]
[356331648,1742286674193,-500.0,9.863e-05,2]
[356331649,1742286674204,-500.0,9.863e-05,2]
[356331650,1742286674215,-500.0,9.863e-05,2]
[356331651,1742286674224,-500.0,9.863e-05,2]
[356331652,1742286674234,-500.0,9.863e-05,2]
[356331653,1742286674243,-500.0,9.863e-05,2]
[356331654,1742286674252,-500.0,9.863e-05,2]
[356331655,1742286674262,-500.0,9.863e-05,2]
[356331656,1742286674272,-500.0,9.863e-05,2]
[356331657,1742286674282,-500.0,9.863e-05,2]
[356331658,1742286674292,-500.0,9.863e-05,2]
[356331659,1742286674301,-155.74356281,9.863e-05,2]
[356331660,1742286674311,-500.0,9.863e-05,2]
[356331661,1742286674321,-500.0,9.863e-05,2]
[356331662,1742286674331,-622.72,9.863e-05,2]
[356331663,1742286674341,-917.74,9.863e-05,2]
[356331664,1742286674351,-500.0,9.863e-05,2]
[356331665,1742286674362,-500.0,9.863e-05,2]
[356331666,1742286674372,-500.0,9.863e-05,2]
[356331667,1742286674382,-195.90660556,9.863e-05,2]
[356331668,1742286674392,-500.0,9.863e-05,2]
[356331669,1742286674402,-500.0,9.863e-05,2]
[356331670,1742286674411,-500.0,9.863e-05,2]
[356331671,1742286674420,-500.0,9.863e-05,2]
[356331672,1742286674430,-500.0,9.863e-05,2]
[356331673,1742286674440,-500.0,9.863e-05,2]
[356331674,1742286674449,-1028.0,9.863e-05,2]
[356331675,1742286674459,-500.0,9.863e-05,2]
[356331676,1742286674470,-500.0,9.863e-05,2]
[356331677,1742286674480,-500.0,9.863e-05,2]
[356331678,1742286674490,-500.0,9.863e-05,2]
[356331679,1742286674500,-1921.6,9.863e-05,2]
[356331680,1742286674511,-500.0,9.863e-05,2]
[356331681,1742286674521,-500.0,9.863e-05,2]
[356331682,1742286674531,-653.08,9.863e-05,2]
[356331683,1742286674542,-500.0,9.863e-05,2]
[356331684,1742286674552,-500.0,9.863e-05,2]
[356331685,1742286674561,-2008.81,9.863e-05,2]
[356331686,1742286674571,-500.0,9.863e-05,2]
[356331687,1742286674581,-2178.78,9.863e-05,2]
[356331688,1742286674590,-500.0,9.863e-05,2]
[356331689,1742286674600,-2521.8,9.863e-05,2]
[356331690,1742286674609,-500.0,9.863e-05,2]
[356331691,1742286674619,-176.69826511,9.863e-05,2]
[356331692,1742286674629,-529.85,9.863e-05,2]
[356331693,1742286674639,-500.0,9.863e-05,2]
[356331694,1742286674648,-500.0,9.863e-05,2]
[356331695,1742286674659,-500.0,9.863e-05,2]
[356331696,1742286674670,-500.0,9.863e-05,2]
[356331697,1742286674680,-500.0,9.863e-05,2]
[356331698,1742286674690,-500.0,9.863e-05,2]
[356331699,1742286674701,-500.0,9.863e-05,2]
[356331700,1742286674711,-500.0,9.863e-05,2]
[356331701,1742286674722,-922.48,9.863e-05,2]
[356331702,1742286674732,-680.36,9.863e-05,2]
[356331703,1742286674743,-500.0,9.863e-05,2]
[356331704,1742286674753,-500.0,9.863e-05,2]
[356331705,1742286674763,-682.75,9.863e-05,2]
[356331706,1742286674773,-500.0,9.863e-05,2]
[356331707,1742286674783,-437.34462149,9.863e-05,2]
[356331708,1742286674793,-610.02,9.863e-05,2]
[356331709,1742286674803,-500.0,9.863e-05,2]
[356331710,1742286674815,-674.0,9.863e-05,2]
[356331711,1742286674825,-2151.35,9.863e-05,2]
[356331712,1742286674836,-1105.69,9.863e-05,2]
[356331713,1742286674845,-500.0,9.863e-05,2]
[356331714,1742286674855,-500.0,9.863e-05,2]
[356331715,1742286674865,-500.0,9.863e-05,2]
[356331716,1742286674875,-500.0,9.863e-05,2]
[356331717,1742286674885,-1281.22,9.863e-05,2]
[356331718,1742286674894,-500.0,9.863e-05,2]
[356331719,1742286674904,-500.0,9.863e-05,2]
[356331720,1742286674914,-500.0,9.863e-05,2]
[356331721,1742286674924,-500.0,9.863e-05,2]
[356331722,1742286674933,-500.0,9.863e-05,2]
[356331723,1742286674943,-500.0,9.863e-05,2]
[356331724,1742286674953,-778.89,9.863e-05,2]
[356331725,1742286674963,-500.0,9.863e-05,2]
[356331726,1742286674973,-907.84,9.863e-05,2]
[356331727,1742286674984,-500.0,9.863e-05,2]
[356331728,1742286674995,-500.0,9.863e-05,2]
[356331729,1742286675005,-14498.22,9.863e-05,2]
[356331730,1742286675015,-763.96,9.863e-05,2]
[356331731,1742286675027,-500.0,9.863e-05,2]
[356331732,1742286675037,-500.0,9.863e-05,2]
[356331733,1742286675046,-2492.38,9.863e-05,2]
[356331734,1742286675055,-500.0,9.863e-05,2]
[356331735,1742286675066,-500.0,9.863e-05,2]
[356331736,1742286675075,-885.14,9.863e-05,2]
[356331737,1742286675086,-626.66,9.863e-05,2]
[356331738,1742286675096,-500.0,9.863e-05,2]
[356331739,1742286675107,-500.0,9.863e-05,2]
[356331740,1742286675123,-1236.95,9.863e-05,2]
[356331741,1742286675134,-500.0,9.863e-05,2]
[356331742,1742286675144,-500.0,9.863e-05,2]
[356331743,1742286675153,-1394.36,9.863e-05,2]
[356331744,1742286675164,-667.87,9.863e-05,2]
[356331745,1742286675176,-500.0,9.863e-05,2]
[356331746,1742286675186,-500.0,9.863e-05,2]
[356331747,1742286675196,-500.0,9.863e-05,2]
[356331748,1742286675209,-500.0,9.863e-05,2]
[356331749,1742286675221,-1394.43,9.863e-05,2]
[356331750,1742286675232,-5190.96,9.863e-05,2]
[356331751,1742286675243,-500.0,9.863e-05,2]
[356331752,1742286675253,-500.0,9.863e-05,2]
[356331753,1742286675264,-382.43522683,9.863e-05,2]
[356331754,1742286675275,-500.0,9.863e-05,2]
[356331755,1742286675286,-1898.09,9.863e-05,2]
[356331756,1742286675412,-350.35209185,9.863e-05,2]
[356331757,1742286675422,-500.0,9.863e-05,2]
[356331758,1742286675431,-500.0,9.863e-05,2]
[356331759,1742286675441,-505.21,9.863e-05,2]
[356331760,1742286675451,-604.25,9.863e-05,2]
[356331761,1742286675462,-500.0,9.863e-05,2]
[356331762,1742286675472,-500.0,9.863e-05,2]
[356331763,1742286675482,-687.55,9.863e-05,2]
[356331764,1742286675493,-1875.08,9.863e-05,2]
[356331765,1742286675502,-517.9,9.863e-05,2]
[356331766,1742286675512,-6229.78,9.863e-05,2]
[356331767,1742286675522,-500.0,9.863e-05,2]
[356331768,1742286675533,-500.0,9.863e-05,2]
[356331769,1742286675544,-500.0,9.863e-05,2]
[356331770,1742286675553,-500.0,9.863e-05,2]
[356331771,1742286675564,-10748.02,9.863e-05,2]
[356331772,1742286675574,-4015.9,9.863e-05,2]
[356331773,1742286675583,-572.11833475,9.863e-05,2]
[356331774,1742286675595,-7811.31,9.863e-05,2]
[356331775,1742286675604,-1219.17,9.863e-05,2]
[356331776,1742286675615,-500.0,9.863e-05,2]
[356331777,1742286675625,-500.0,9.863e-05,2]
[356331778,1742286675635,-5865.91,9.863e-05,2]
[356331779,1742286675644,-500.0,9.863e-05,2]
[356331780,1742286675654,-1567.61,9.863e-05,2]
[356331781,1742286675664,-460.84028555,9.863e-05,2]
[356331782,1742286675674,-500.0,9.863e-05,2]
[356331783,1742286675684,-2101.67,9.863e-05,2]
[356331784,1742286675694,-500.0,9.863e-05,2]
[356331785,1742286675704,-1103.93,9.863e-05,2]
[356331786,1742286675715,-500.0,9.863e-05,2]
[356331787,1742286675725,-500.0,9.863e-05,2]
[356331788,1742286675736,-500.0,9.863e-05,2]
[356331789,1742286675746,-500.0,9.863e-05,2]
[356331790,1742286675756,-500.0,9.863e-05,2]
[356331791,1742286675766,-1658.96,9.863e-05,2]
[356331792,1742286675776,-500.0,9.863e-05,2]
[356331793,1742286675787,-98083.34,9.863e-05,2]
[356331794,1742286675797,-500.0,9.863e-05,2]
[356331795,1742286675807,-500.0,9.863e-05,2]
[356331796,1742286675818,-656.05,9.863e-05,2]
[356331797,1742286675828,-500.0,9.863e-05,2]
[356331798,1742286675838,-500.0,9.863e-05,2]
[356331799,1742286675849,-2562.21,9.863e-05,2]
[356331800,1742286675859,-3833.09,9.863e-05,2]
[356331801,1742286675869,-500.0,9.863e-05,2]
[356331802,1742286675879,-1785.76,9.863e-05,2]
[356331803,1742286675890,-1141.65,9.863e-05,2]
[356331804,1742286675900,-500.0,9.863e-05,2]
[356331805,1742286675911,-6740.53,9.863e-05,2]
[356331806,1742286675921,-1590.13,9.863e-05,2]
[356331807,1742286675932,-500.0,9.863e-05,2]
[356331808,1742286675943,-700.85,9.863e-05,2]
[356331809,1742286675953,-500.0,9.863e-05,2]
[356331810,1742286675965,-500.0,9.863e-05,2]
[356331811,1742286675976,-9675.79,9.863e-05,2]
[356331812,1742286675987,-500.0,9.863e-05,2]
[356331813,1742286675997,-343.05956094,9.863e-05,2]
[356331814,1742286676008,-586.54411118,9.863e-05,2]
[356331815,1742286676019,-500.0,9.863e-05,2]
[356331816,1742286676030,-884.32,9.863e-05,2]
[356331817,1742286676041,-2187.92,9.863e-05,2]
[356331818,1742286676051,-3166.23,9.863e-05,2]
[356331819,1742286676062,-500.0,9.863e-05,2]
[356331820,1742286676072,-500.0,9.863e-05,2]
[356331821,1742286676083,-846.0,9.863e-05,2]
[356331822,1742286676094,-500.0,9.863e-05,2]
[356331823,1742286676104,-500.0,9.863e-05,2]
[356331824,1742286676117,-500.0,9.863e-05,2]
[356331825,1742286676130,-500.0,9.863e-05,2]
[356331826,1742286676141,-847.69,9.863e-05,2]
[356331827,1742286676153,-1476.4,9.863e-05,2]
[356331828,1742286676164,-1068.47,9.863e-05,2]
[356331829,1742286676175,-500.0,9.863e-05,2]
[356331830,1742286676186,-500.0,9.863e-05,2]
[356331831,1742286676197,-2552.77,9.863e-05,2]
[356331832,1742286676207,-8078.39,9.863e-05,2]
[356331833,1742286676218,-574.26,9.863e-05,2]
[356331834,1742286676228,-3125.56,9.863e-05,2]
[356331835,1742286676239,-500.0,9.863e-05,2]
[356331836,1742286676250,-500.0,9.863e-05,2]
[356331837,1742286676261,-500.0,9.863e-05,2]
[356331838,1742286676271,-500.0,9.863e-05,2]
[356331839,1742286676283,-500.0,9.863e-05,2]
[356331840,1742286676294,-500.0,9.863e-05,2]
[356331841,1742286676304,-2010.1,9.863e-05,2]
[356331842,1742286676314,-890.39,9.863e-05,2]
[356331843,1742286676325,-500.0,9.863e-05,2]
[356331844,1742286676335,-500.0,9.863e-05,2]
[356331845,1742286676345,-500.0,9.863e-05,2]
[356331846,1742286676355,-602.83,9.863e-05,2]
[356331847,1742286676367,-500.0,9.863e-05,2]
[356331848,1742286676377,-506.18038974,9.863e-05,2]
[356331849,1742286676388,-531.40674215,9.863e-05,2]
[356331850,1742286676400,-500.0,9.863e-05,2]
[356331851,1742286676410,-526.73707508,9.863e-05,2]
[356331852,1742286676421,-500.0,9.863e-05,2]
[356331853,1742286676430,-500.0,9.863e-05,2]
[356331854,1742286676440,-500.0,9.863e-05,2]
[356331855,1742286676450,-500.0,9.863e-05,2]
[356331856,1742286676460,-500.0,9.863e-05,2]
[356331857,1742286676470,-1007.4,9.863e-05,2]
[356331858,1742286676481,-500.0,9.863e-05,2]
[356331859,1742286676492,-500.0,9.863e-05,2]
[356331860,1742286676503,-500.0,9.863e-05,2]
[356331861,1742286676515,-4662.69,9.863e-05,2]
[356331862,1742286676528,-522.09989504,9.863e-05,2]
[356331863,1742286676538,-500.0,9.863e-05,2]
[356331864,1742286676548,-500.0,9.863e-05,2]
[356331865,1742286676559,-500.0,9.863e-05,2]
[356331866,1742286676569,-1611.39,9.863e-05,2]
[356331867,1742286676579,-500.0,9.863e-05,2]
[356331868,1742286676588,-642.65,9.863e-05,2]
[356331869,1742286676599,-500.0,9.863e-05,2]
[356331870,1742286676610,-628.53,9.863e-05,2]
[356331871,1742286676620,-500.0,9.863e-05,2]
[356331872,1742286676631,-1500.8,9.863e-05,2]
[356331873,1742286676641,-500.0,9.863e-05,2]
[356331874,1742286676651,-778.05,9.863e-05,2]
[356331875,1742286676661,-500.0,9.863e-05,2]
[356331876,1742286676671,-663.29,9.863e-05,2]
[356331877,1742286676681,-690.44,9.863e-05,2]
[356331878,1742286676691,-500.0,9.863e-05,2]
[356331879,1742286676702,-500.0,9.863e-05,2]
[356331880,1742286676713,-835.11200367,9.895e-05,2]
[356331881,1742286676724,-151.99437,9.975e-05,3]
[356331882,1742286676734,-65001.44949715,0.0001,2]
[356331883,1742286676745,-30000.0,0.0001,4]
[356331884,1742286676755,-500.0,0.0001,2]
[356331885,1742286676766,-419.11617975,0.0001,2]
[356331886,1742286676777,-500.0,0.0001,5]
[356331887,1742286676788,-1000.0,0.0001,2]
[356331888,1742286676799,-2200.0,0.0001,2]
[356331889,1742286676811,-666.70113518,0.0001,7]
[356331890,1742286676821,-151.99437,0.0001,4]
[356331891,1742286676833,-151.99437,0.0001,4]
[356331892,1742286676844,-151.99437,0.0001,3]
[356331893,1742286676854,-22819.41313806,0.00010035,2]
[356331894,1742286676864,-655.37,0.000101,2]
[356331895,1742286676875,-150.0,0.00010134,2]
[356331896,1742286676886,-500.0,0.00010136,2]
[356331897,1742286676896,-500.0,0.00010136,2]
[356331898,1742286676905,-502.89,0.00010136,2]
[356331899,1742286676916,-565.34726501,0.00010136,2]
[356331900,1742286676927,-500.0,0.00010136,2]
[356331901,1742286676939,-500.0,0.00010136,2]
[356331902,1742286676950,-500.0,0.00010136,2]
[356331903,1742286676960,-500.0,0.00010136,2]
[356331904,1742286676970,-500.0,0.00010136,2]
[356331905,1742286676980,-500.0,0.00010136,2]
[356331906,1742286676991,-500.0,0.00010136,2]
[356331907,1742286677001,-500.0,0.00010136,2]
[356331908,1742286677012,-500.0,0.00010136,2]
[356331909,1742286677022,-500.0,0.00010136,2]
[356331910,1742286677033,-500.0,0.00010136,2]
[356331911,1742286677043,-500.0,0.00010136,2]
[356331912,1742286677053,-500.0,0.00010136,2]
[356331913,1742286677063,-500.0,0.00010136,2]
[356331914,1742286677073,-500.0,0.00010136,2]
[356331915,1742286677083,-500.0,0.00010136,2]
[356331916,1742286677094,-500.0,0.00010136,2]
[356331917,1742286677103,-500.0,0.00010136,2]
[356331918,1742286677114,-500.0,0.00010136,2]
[356331919,1742286677127,-500.0,0.00010136,2]
[356331920,1742286677241,-500.0,0.00010136,2]
[356331921,1742286677251,-500.0,0.00010136,2]
[356331922,1742286677261,-500.0,0.00010136,2]
[356331923,1742286677271,-500.0,0.00010136,2]
[356331924,1742286677283,-500.0,0.00010136,2]
[356331925,1742286677293,-500.0,0.00010136,2]
[356331926,1742286677303,-500.0,0.00010136,2]
[356331927,1742286677312,-500.0,0.00010136,2]
[356331928,1742286677322,-622.72,0.00010136,2]
[356331929,1742286677332,-917.74,0.00010136,2]
[356331930,1742286677341,-500.0,0.00010136,2]
[356331931,1742286677351,-500.0,0.00010136,2]
[356331932,1742286677361,-500.0,0.00010136,2]
[356331933,1742286677370,-500.0,0.00010136,2]
[356331934,1742286677380,-500.0,0.00010136,2]
[356331935,1742286677390,-500.0,0.00010136,2]
[356331936,1742286677399,-500.0,0.00010136,2]
[356331937,1742286677411,-500.0,0.00010136,2]
[356331938,1742286677421,-500.0,0.00010136,2]
[356331939,1742286677432,-1028.0,0.00010136,2]
[356331940,1742286677442,-500.0,0.00010136,2]
[356331941,1742286677452,-500.0,0.00010136,2]
[356331942,1742286677462,-500.0,0.00010136,2]
[356331943,1742286677472,-500.0,0.00010136,2]
[356331944,1742286677481,-1921.6,0.00010136,2]
[356331945,1742286677491,-274.33726363,0.00010136,2]
[356331946,1742286677501,-500.0,0.00010136,2]
[356331947,1742286677511,-653.08,0.00010136,2]
[356331948,1742286677520,-500.0,0.00010136,2]
[356331949,1742286677532,-500.0,0.00010136,2]
[356331950,1742286677541,-2008.81,0.00010136,2]
[356331951,1742286677551,-500.0,0.00010136,2]
[356331952,1742286677562,-2178.78,0.00010136,2]
[356331953,1742286677573,-500.0,0.00010136,2]
[356331954,1742286677583,-2521.8,0.00010136,2]
[356331955,1742286677593,-500.0,0.00010136,2]
[356331956,1742286677603,-529.85,0.00010136,2]
[356331957,1742286677613,-500.0,0.00010136,2]
[356331958,1742286677623,-500.0,0.00010136,2]
[356331959,1742286677641,-500.0,0.00010136,2]
[356331960,1742286677651,-500.0,0.00010136,2]
[356331961,1742286677660,-638.42631724,0.00010136,2]
[356331962,1742286677670,-500.0,0.00010136,2]
[356331963,1742286677680,-500.0,0.00010136,2]
[356331964,1742286677689,-500.0,0.00010136,2]
[356331965,1742286677699,-922.48,0.00010136,2]
[356331966,1742286677708,-680.36,0.00010136,2]
[356331967,1742286677718,-163.63414971,0.00010136,2]
[356331968,1742286677728,-500.0,0.00010136,2]
[356331969,1742286677737,-682.75,0.00010136,2]
[356331970,1742286677746,-500.0,0.00010136,2]
[356331971,1742286677756,-610.02,0.00010136,2]
[356331972,1742286677765,-500.0,0.00010136,2]
[356331973,1742286677775,-674.0,0.00010136,2]
[356331974,1742286677784,-2151.35,0.00010136,2]
[356331975,1742286677794,-1105.69,0.00010136,2]
[356331976,1742286677804,-500.0,0.00010136,2]
[356331977,1742286677815,-553.34031291,0.00010136,2]
[356331978,1742286677824,-500.0,0.00010136,2]
[356331979,1742286677834,-500.0,0.00010136,2]
[356331980,1742286677843,-1281.22,0.00010136,2]
[356331981,1742286677853,-500.0,0.00010136,2]
[356331982,1742286677863,-500.0,0.00010136,2]
[356331983,1742286677873,-500.0,0.00010136,2]
[356331984,1742286677883,-518.70194123,0.00010136,2]
[356331985,1742286677893,-428.7793036,0.00010136,2]
[356331986,1742286677906,-500.0,0.00010136,2]
[356331987,1742286677915,-778.89,0.00010136,2]
[356331988,1742286677925,-500.0,0.00010136,2]
[356331989,1742286677934,-907.84,0.00010136,2]
[356331990,1742286677943,-530.61746265,0.00010136,2]
[356331991,1742286677952,-500.0,0.00010136,2]
[356331992,1742286677962,-14498.22,0.00010136,2]
[356331993,1742286677972,-763.96,0.00010136,2]
[356331994,1742286677982,-500.00057345,0.00010136,2]
[356331995,1742286677991,-500.0,0.00010136,2]
[356331996,1742286678001,-2492.38,0.00010136,2]
[356331997,1742286678011,-524.07090407,0.00010136,2]
[356331998,1742286678021,-500.0,0.00010136,2]
[356331999,1742286678032,-885.14,0.00010136,2]
[356332000,1742286678043,-626.66,0.00010136,2]
[356332001,1742286678052,-500.0,0.00010136,2]
[356332002,1742286678063,-1236.95,0.00010136,2]
[356332003,1742286678073,-514.96875099,0.00010136,2]
[356332004,1742286678083,-500.0,0.00010136,2]
[356332005,1742286678094,-500.0,0.00010136,2]
[356332006,1742286678104,-1394.36,0.00010136,2]
[356332007,1742286678114,-667.87,0.00010136,2]
[356332008,1742286678127,-500.0,0.00010136,2]
[356332009,1742286678137,-500.0,0.00010136,2]
[356332010,1742286678148,-500.0,0.00010136,2]
[356332011,1742286678159,-500.0,0.00010136,2]
[356332012,1742286678169,-1394.43,0.00010136,2]
[356332013,1742286678179,-5190.96,0.00010136,2]
[356332014,1742286678188,-500.0,0.00010136,2]
[356332015,1742286678199,-500.0,0.00010136,2]
[356332016,1742286678210,-500.0,0.00010136,2]
[356332017,1742286678220,-1898.09,0.00010136,2]
[356332018,1742286678230,-500.0,0.00010136,2]
[356332019,1742286678240,-500.0,0.00010136,2]
[356332020,1742286678249,-505.21,0.00010136,2]
[356332021,1742286678260,-604.25,0.00010136,2]
[356332022,1742286678270,-500.0,0.00010136,2]
[356332023,1742286678281,-500.0,0.00010136,2]
[356332024,1742286678291,-687.55,0.00010136,2]
[356332025,1742286678301,-1875.08,0.00010136,2]
[356332026,1742286678311,-517.9,0.00010136,2]
[356332027,1742286678327,-6229.78,0.00010136,2]
[356332028,1742286678337,-500.0,0.00010136,2]
[356332029,1742286678348,-500.0,0.00010136,2]
[356332030,1742286678358,-500.0,0.00010136,2]
[356332031,1742286678368,-500.0,0.00010136,2]
[356332032,1742286678379,-10748.02,0.00010136,2]
[356332033,1742286678389,-4015.9,0.00010136,2]
[356332034,1742286678400,-7811.31,0.00010136,2]
[356332035,1742286678409,-1219.17,0.00010136,2]
[356332036,1742286678419,-500.0,0.00010136,2]
[356332037,1742286678429,-500.0,0.00010136,2]
[356332038,1742286678438,-5865.91,0.00010136,2]
[356332039,1742286678448,-500.0,0.00010136,2]
[356332040,1742286678459,-1567.61,0.00010136,2]
[356332041,1742286678472,-514.93470101,0.00010136,2]
[356332042,1742286678483,-2101.67,0.00010136,2]
[356332043,1742286678494,-500.0,0.00010136,2]
[356332044,1742286678504,-1103.93,0.00010136,2]
[356332045,1742286678514,-544.48808885,0.00010136,2]
[356332046,1742286678525,-500.0,0.00010136,2]
[356332047,1742286678534,-500.0,0.00010136,2]
[356332048,1742286678544,-500.0,0.00010136,2]
[356332049,1742286678555,-500.0,0.00010136,2]
[356332050,1742286678564,-1658.96,0.00010136,2]
[356332051,1742286678574,-500.0,0.00010136,2]
[356332052,1742286678584,-98083.34,0.00010136,2]
[356332053,1742286678594,-500.0,0.00010136,2]
[356332054,1742286678604,-500.0,0.00010136,2]
[356332055,1742286678614,-656.05,0.00010136,2]
[356332056,1742286678624,-500.0,0.00010136,2]
[356332057,1742286678635,-500.0,0.00010136,2]